[Event "Titled Tuesday Blitz August 3 2021"]
[White "Assaubayeva, Bibisara"]
[Black "Mitusov, Semen"]
[WhiteFideId "13708694"]
[BlackFideId "14151049"]
[WhiteElo "2232"]
[BlackElo "2256"]
[Result "1/2-1/2"]
[Round "02"]
[TimeControl "180+1"]
[Date "2021.08.03"]
[WhiteClock "0:00:08"]
[BlackClock "0:00:23"]

1. d4 {[%clk 0:02:58]}  d5 {[%clk 0:02:59]} 2. c4 {[%clk 0:02:59]}  dxc4 {[%clk 0:02:59]} 3. Nf3 {[%clk 0:02:59]}  Nf6 {[%clk 0:02:59]} 4. e3 {[%clk 0:02:59]}  Bg4 {[%clk 0:02:58]} 5. Bxc4 {[%clk 0:02:59]}  e6 {[%clk 0:02:58]} 6. h3 {[%clk 0:02:59]}  Bh5 {[%clk 0:02:56]} 7. Nc3 {[%clk 0:02:58]}  a6 {[%clk 0:02:54]} 8. g4 {[%clk 0:02:48]}  Bg6 {[%clk 0:02:52]} 9. Nh4 {[%clk 0:02:48]}  Nc6 {[%clk 0:02:48]} 10. Nxg6 {[%clk 0:02:42]}  hxg6 {[%clk 0:02:47]} 11. Bf1 {[%clk 0:02:42]}  Bd6 {[%clk 0:02:39]} 12. Bg2 {[%clk 0:02:41]}  Qd7 {[%clk 0:02:29]} 13. Qb3 {[%clk 0:02:35]}  O-O-O {[%clk 0:02:24]} 14. Bd2 {[%clk 0:02:31]}  e5 {[%clk 0:02:21]} 15. dxe5 {[%clk 0:02:23]}  Bxe5 {[%clk 0:02:14]} 16. O-O-O {[%clk 0:02:20]}  g5 {[%clk 0:01:59]} 17. f4 {[%clk 0:02:09]}  gxf4 {[%clk 0:01:56]} 18. exf4 {[%clk 0:02:10]}  Bd4 {[%clk 0:01:52]} 19. Kb1 {[%clk 0:02:06]}  Na5 {[%clk 0:01:24]} 20. Qb4 {[%clk 0:01:53]}  Bb6 {[%clk 0:01:19]} 21. Be3 {[%clk 0:01:45]}  Qe6 {[%clk 0:01:19]} 22. Bxb6 {[%clk 0:01:41]}  Qxb6 {[%clk 0:01:12]} 23. Qxb6 {[%clk 0:01:36]}  cxb6 {[%clk 0:01:13]} 24. g5 {[%clk 0:01:20]}  Nd7 {[%clk 0:01:13]} 25. Nd5 {[%clk 0:01:17]}  Nc6 {[%clk 0:01:12]} 26. Rhe1 {[%clk 0:01:14]}  Rhe8 {[%clk 0:01:12]} 27. Bf3 {[%clk 0:01:11]}  Kb8 {[%clk 0:01:09]} 28. Bg4 {[%clk 0:01:08]}  Rxe1 {[%clk 0:01:09]} 29. Rxe1 {[%clk 0:01:08]}  Nc5 {[%clk 0:01:05]} 30. Nxb6 {[%clk 0:01:07]}  Rd4 {[%clk 0:01:04]} 31. Bf3 {[%clk 0:00:27]}  Kc7 {[%clk 0:00:51]} 32. Nd5+ {[%clk 0:00:20]}  Kd6 {[%clk 0:00:51]} 33. Ne3 {[%clk 0:00:17]}  Rxf4 {[%clk 0:00:51]} 34. Bg4 {[%clk 0:00:17]}  Nd4 {[%clk 0:00:49]} 35. Rd1 {[%clk 0:00:17]}  Kc6 {[%clk 0:00:46]} 36. Nc4 {[%clk 0:00:16]}  Nce6 {[%clk 0:00:46]} 37. Ne5+ {[%clk 0:00:16]}  Kd5 {[%clk 0:00:46]} 38. Nxf7 {[%clk 0:00:14]}  Rxf7 {[%clk 0:00:46]} 39. Bxe6+ {[%clk 0:00:15]}  Kxe6 {[%clk 0:00:45]} 40. Rxd4 {[%clk 0:00:16]}  Rf2 {[%clk 0:00:40]} 41. a3 {[%clk 0:00:12]}  Rh2 {[%clk 0:00:38]} 42. h4 {[%clk 0:00:12]}  Ke5 {[%clk 0:00:37]} 43. Rd7 {[%clk 0:00:11]}  g6 {[%clk 0:00:34]} 44. Rxb7 {[%clk 0:00:10]}  Rxh4 {[%clk 0:00:33]} 45. Rb6 {[%clk 0:00:11]}  Kf5 {[%clk 0:00:33]} 46. Rxa6 {[%clk 0:00:11]}  Kxg5 {[%clk 0:00:34]} 47. b4 {[%clk 0:00:09]}  Rh3 {[%clk 0:00:29]} 48. Kb2 {[%clk 0:00:08]}  Kf5 {[%clk 0:00:30]} 49. b5 {[%clk 0:00:08]}  g5 {[%clk 0:00:30]} 50. b6 {[%clk 0:00:09]}  Rh7 {[%clk 0:00:27]} 51. Ra7 {[%clk 0:00:08]}  Rh6 {[%clk 0:00:28]} 52. Rf7+ {[%clk 0:00:06]}  Ke4 {[%clk 0:00:26]} 53. b7 {[%clk 0:00:06]}  Rb6+ {[%clk 0:00:26]} 54. Kc3 {[%clk 0:00:07]}  g4 {[%clk 0:00:26]} 55. a4 {[%clk 0:00:07]}  g3 {[%clk 0:00:25]} 56. a5 {[%clk 0:00:07]}  g2 {[%clk 0:00:22]} 57. axb6 {[%clk 0:00:07]}  g1=Q {[%clk 0:00:23]} 58. b8=Q {[%clk 0:00:08]}  Qc1+ {[%clk 0:00:22]} 59. Kb4 {[%clk 0:00:08]}  Qb2+ {[%clk 0:00:22]} 60. Kc5 {[%clk 0:00:07]}  Qd4+ {[%clk 0:00:20]} 61. Kb5 {[%clk 0:00:06]}  Qd5+ {[%clk 0:00:20]} 62. Ka6 {[%clk 0:00:06]}  Qa2+ {[%clk 0:00:20]} 63. Kb7 {[%clk 0:00:05]}  Qxf7+ {[%clk 0:00:21]} 64. Ka8 {[%clk 0:00:05]}  Qa2+ {[%clk 0:00:21]} 65. Qa7 {[%clk 0:00:05]}  Qg8+ {[%clk 0:00:21]} 66. Kb7 {[%clk 0:00:05]}  Qd5+ {[%clk 0:00:21]} 67. Ka6 {[%clk 0:00:06]}  Qa2+ {[%clk 0:00:21]} 68. Kb5 {[%clk 0:00:06]}  Qb3+ {[%clk 0:00:21]} 69. Ka6 {[%clk 0:00:06]}  Qa2+ {[%clk 0:00:22]} 70. Kb5 {[%clk 0:00:07]}  Qb3+ {[%clk 0:00:22]} 71. Kc6 {[%clk 0:00:07]}  Qd5+ {[%clk 0:00:22]} 72. Kc7 {[%clk 0:00:07]}  Qf7+ {[%clk 0:00:23]} 73. Kb8 {[%clk 0:00:07]}  Qg8+ {[%clk 0:00:23]} 74. Kb7 {[%clk 0:00:07]}  Qd5+ {[%clk 0:00:23]} 75. Kb8 {[%clk 0:00:08]}  Qg8+ {[%clk 0:00:23]} 76. Kb7 {[%clk 0:00:08]} 1/2-1/2


[Site "https://www.chess.com"]

[Event "Titled Tuesday Blitz August 3 2021"]
[White "Batsuren, Dambasuren"]
[Black "Atanasov, Anthony"]
[WhiteFideId "4902920"]
[BlackFideId "2623897"]
[WhiteElo "2371"]
[BlackElo "1889"]
[Result "1-0"]
[Round "02"]
[TimeControl "180+1"]
[Date "2021.08.03"]
[WhiteClock "0:00:04"]
[BlackClock "0:00:04"]

1. d4 {[%clk 0:03:00]}  Nf6 {[%clk 0:01:00]} 2. c4 {[%clk 0:03:01]}  g6 {[%clk 0:00:57]} 3. Nc3 {[%clk 0:03:02]}  d5 {[%clk 0:00:57]} 4. Bf4 {[%clk 0:03:01]}  Bg7 {[%clk 0:00:56]} 5. e3 {[%clk 0:03:02]}  O-O {[%clk 0:00:55]} 6. Rc1 {[%clk 0:03:02]}  c5 {[%clk 0:00:54]} 7. dxc5 {[%clk 0:03:03]}  Qa5 {[%clk 0:00:51]} 8. Nf3 {[%clk 0:03:02]}  dxc4 {[%clk 0:00:51]} 9. Bxc4 {[%clk 0:03:03]}  Qxc5 {[%clk 0:00:49]} 10. Bb3 {[%clk 0:03:03]}  Bg4 {[%clk 0:00:46]} 11. h3 {[%clk 0:03:02]}  Qh5 {[%clk 0:00:44]} 12. O-O {[%clk 0:03:01]}  Bxf3 {[%clk 0:00:42]} 13. Qxf3 {[%clk 0:03:02]}  Qxf3 {[%clk 0:00:42]} 14. gxf3 {[%clk 0:03:03]}  Nc6 {[%clk 0:00:42]} 15. Nd5 {[%clk 0:02:36]}  Rad8 {[%clk 0:00:29]} 16. e4 {[%clk 0:02:06]}  Nxd5 {[%clk 0:00:14]} 17. Bxd5 {[%clk 0:02:07]}  Nd4 {[%clk 0:00:14]} 18. Bc7 {[%clk 0:01:40]}  Ne2+ {[%clk 0:00:09]} 19. Kg2 {[%clk 0:01:41]}  Nxc1 {[%clk 0:00:04]} 20. Bxd8 {[%clk 0:01:41]}  Rxd8 {[%clk 0:00:04]} 21. Rxc1 {[%clk 0:01:41]}  Bxb2 {[%clk 0:00:04]} 22. Rb1 {[%clk 0:01:40]}  Bd4 {[%clk 0:00:04]} 23. Rxb7 {[%clk 0:01:41]}  e6 {[%clk 0:00:04]} 24. Bc6 {[%clk 0:01:25]}  Bb6 {[%clk 0:00:04]} 25. Bd7 {[%clk 0:01:26]}  Kg7 {[%clk 0:00:04]} 26. Bxe6 {[%clk 0:01:26]}  Rd2 {[%clk 0:00:02]} 27. Rxf7+ {[%clk 0:01:25]}  Kh6 {[%clk 0:00:03]} 28. f4 {[%clk 0:01:23]}  Rxf2+ {[%clk 0:00:02]} 29. Kg3 {[%clk 0:01:23]}  Rf1 {[%clk 0:00:02]} 30. e5 {[%clk 0:01:13]}  Be3 {[%clk 0:00:02]} 31. h4 {[%clk 0:01:08]}  a5 {[%clk 0:00:02]} 32. Bb3 {[%clk 0:01:04]}  Bd4 {[%clk 0:00:01]} 33. e6 {[%clk 0:01:03]}  Re1 {[%clk 0:00:01]} 34. Bd5 {[%clk 0:00:30]}  Re3+ {[%clk 0:00:01]} 35. Kg4 {[%clk 0:00:30]}  Re1 {[%clk 0:00:02]} 36. Kg3 {[%clk 0:00:26]}  Re3+ {[%clk 0:00:01]} 37. Kg2 {[%clk 0:00:27]}  a4 {[%clk 0:00:02]} 38. Bc4 {[%clk 0:00:21]}  Re4 {[%clk 0:00:02]} 39. h5 {[%clk 0:00:20]}  Kxh5 {[%clk 0:00:02]} 40. Bd5 {[%clk 0:00:14]}  Re2+ {[%clk 0:00:02]} 41. Kf3 {[%clk 0:00:13]}  Re3+ {[%clk 0:00:02]} 42. Kg2 {[%clk 0:00:14]}  h6 {[%clk 0:00:02]} 43. e7 {[%clk 0:00:12]}  Bc5 {[%clk 0:00:02]} 44. f5 {[%clk 0:00:11]}  g5 {[%clk 0:00:02]} 45. f6 {[%clk 0:00:11]}  Kg6 {[%clk 0:00:02]} 46. Rf8 {[%clk 0:00:06]}  Bxe7 {[%clk 0:00:03]} 47. fxe7 {[%clk 0:00:06]}  Rxe7 {[%clk 0:00:03]} 48. Ra8 {[%clk 0:00:07]}  Re2+ {[%clk 0:00:04]} 49. Kf3 {[%clk 0:00:06]}  Rd2 {[%clk 0:00:04]} 50. Be4+ {[%clk 0:00:07]}  Kf6 {[%clk 0:00:04]} 51. Rxa4 {[%clk 0:00:06]}  h5 {[%clk 0:00:04]} 52. Ra6+ {[%clk 0:00:06]}  Kf7 {[%clk 0:00:04]} 53. Bg6+ {[%clk 0:00:06]}  Kg7 {[%clk 0:00:04]} 54. Bxh5 {[%clk 0:00:07]}  Rd4 {[%clk 0:00:04]} 55. Kg3 {[%clk 0:00:05]}  Rf4 {[%clk 0:00:04]} 56. Bf3 {[%clk 0:00:05]}  Kf7 {[%clk 0:00:04]} 57. a4 {[%clk 0:00:05]}  Ke7 {[%clk 0:00:05]} 58. a5 {[%clk 0:00:05]}  Kd7 {[%clk 0:00:05]} 59. Rg6 {[%clk 0:00:04]}  Rf5 {[%clk 0:00:04]} 60. Bg4 {[%clk 0:00:04]} 1-0


[Site "https://www.chess.com"]

[Event "Titled Tuesday Blitz August 3 2021"]
[White "Bortnyk, Olexandr"]
[Black "Costachi, Mihnea"]
[WhiteFideId "14120828"]
[BlackFideId "1217518"]
[WhiteElo "2723"]
[BlackElo "2482"]
[Result "1-0"]
[Round "02"]
[TimeControl "180+1"]
[Date "2021.08.03"]
[WhiteClock "0:00:22"]
[BlackClock "0:00:22"]

1. e4 {[%clk 0:03:00]}  e5 {[%clk 0:02:59]} 2. Bc4 {[%clk 0:02:57]}  Nf6 {[%clk 0:02:58]} 3. d3 {[%clk 0:02:57]}  Bc5 {[%clk 0:02:58]} 4. Nc3 {[%clk 0:02:55]}  d6 {[%clk 0:02:58]} 5. Bg5 {[%clk 0:02:54]}  h6 {[%clk 0:02:57]} 6. Bh4 {[%clk 0:02:54]}  Be6 {[%clk 0:02:57]} 7. Nge2 {[%clk 0:02:49]}  Nbd7 {[%clk 0:02:53]} 8. Bb3 {[%clk 0:02:41]}  c6 {[%clk 0:02:48]} 9. d4 {[%clk 0:02:38]}  exd4 {[%clk 0:02:47]} 10. Nxd4 {[%clk 0:02:39]}  Bxb3 {[%clk 0:02:47]} 11. axb3 {[%clk 0:02:33]}  Qb6 {[%clk 0:02:48]} 12. Nf5 {[%clk 0:02:27]}  O-O {[%clk 0:02:41]} 13. O-O {[%clk 0:02:21]}  Rfe8 {[%clk 0:02:41]} 14. Qf3 {[%clk 0:02:20]}  Re6 {[%clk 0:02:11]} 15. Qg3 {[%clk 0:02:03]}  Ne8 {[%clk 0:02:05]} 16. Rfd1 {[%clk 0:01:54]}  g5 {[%clk 0:01:55]} 17. Na4 {[%clk 0:01:44]}  Qd8 {[%clk 0:01:41]} 18. Nxh6+ {[%clk 0:01:14]}  Rxh6 {[%clk 0:01:40]} 19. Bxg5 {[%clk 0:01:15]}  Rg6 {[%clk 0:01:37]} 20. Bxd8 {[%clk 0:01:15]}  Rxg3 {[%clk 0:01:37]} 21. hxg3 {[%clk 0:01:16]}  Rxd8 {[%clk 0:01:38]} 22. Nxc5 {[%clk 0:01:17]}  Nxc5 {[%clk 0:01:38]} 23. Rxa7 {[%clk 0:01:18]}  b5 {[%clk 0:01:28]} 24. f3 {[%clk 0:01:14]}  Kg7 {[%clk 0:01:23]} 25. Kf2 {[%clk 0:01:11]}  Kf6 {[%clk 0:01:23]} 26. b4 {[%clk 0:01:07]}  Ne6 {[%clk 0:01:23]} 27. f4 {[%clk 0:01:06]}  d5 {[%clk 0:01:19]} 28. exd5 {[%clk 0:01:04]}  cxd5 {[%clk 0:01:20]} 29. c3 {[%clk 0:01:01]}  Nd6 {[%clk 0:01:20]} 30. Kf3 {[%clk 0:00:58]}  Ne4 {[%clk 0:01:12]} 31. g4 {[%clk 0:00:57]}  Kg7 {[%clk 0:01:07]} 32. g5 {[%clk 0:00:56]}  Kg6 {[%clk 0:00:55]} 33. g4 {[%clk 0:00:54]}  f5 {[%clk 0:00:54]} 34. gxf5+ {[%clk 0:00:40]}  Kxf5 {[%clk 0:00:55]} 35. Rh1 {[%clk 0:00:39]}  Nd2+ {[%clk 0:00:53]} 36. Ke2 {[%clk 0:00:34]}  Nc4 {[%clk 0:00:53]} 37. Rf7+ {[%clk 0:00:32]}  Kg4 {[%clk 0:00:50]} 38. Rg1+ {[%clk 0:00:31]}  Kh5 {[%clk 0:00:50]} 39. g6 {[%clk 0:00:32]}  Nf8 {[%clk 0:00:37]} 40. g7 {[%clk 0:00:28]}  Re8+ {[%clk 0:00:37]} 41. Kf2 {[%clk 0:00:22]}  Ng6 {[%clk 0:00:25]} 42. g8=Q {[%clk 0:00:22]}  Rxg8 {[%clk 0:00:22]} 43. Rh7# {[%clk 0:00:22]} 1-0


[Site "https://www.chess.com"]

[Event "Titled Tuesday Blitz August 3 2021"]
[White "Dzhaparov, Medet"]
[Black "Jaracz, Pawel"]
[WhiteFideId "13803689"]
[BlackFideId "1102222"]
[WhiteElo "1702"]
[BlackElo "2495"]
[Result "0-1"]
[Round "02"]
[TimeControl "180+1"]
[Date "2021.08.03"]
[WhiteClock "0:00:02"]
[BlackClock "0:01:25"]

1. d4 {[%clk 0:03:00]}  Nf6 {[%clk 0:02:58]} 2. c4 {[%clk 0:03:00]}  e6 {[%clk 0:02:58]} 3. Nc3 {[%clk 0:03:00]}  Bb4 {[%clk 0:02:58]} 4. Qc2 {[%clk 0:03:00]}  b6 {[%clk 0:02:50]} 5. Bg5 {[%clk 0:02:58]}  Bb7 {[%clk 0:02:48]} 6. e3 {[%clk 0:02:58]}  h6 {[%clk 0:02:46]} 7. Bh4 {[%clk 0:02:58]}  c5 {[%clk 0:02:44]} 8. dxc5 {[%clk 0:02:51]}  bxc5 {[%clk 0:02:43]} 9. a3 {[%clk 0:02:42]}  Qa5 {[%clk 0:02:41]} 10. Bxf6 {[%clk 0:02:22]}  gxf6 {[%clk 0:02:40]} 11. Ne2 {[%clk 0:02:18]}  Nc6 {[%clk 0:02:32]} 12. O-O-O {[%clk 0:02:15]}  Bxc3 {[%clk 0:02:32]} 13. Qxc3 {[%clk 0:01:54]}  Qxc3+ {[%clk 0:02:31]} 14. Nxc3 {[%clk 0:01:53]}  Ne5 {[%clk 0:02:26]} 15. f3 {[%clk 0:01:20]}  Ke7 {[%clk 0:02:21]} 16. Be2 {[%clk 0:01:09]}  Bc6 {[%clk 0:02:19]} 17. Rhe1 {[%clk 0:00:59]}  f5 {[%clk 0:02:17]} 18. Bf1 {[%clk 0:00:57]}  Rab8 {[%clk 0:02:15]} 19. Kc2 {[%clk 0:00:38]}  h5 {[%clk 0:02:14]} 20. h3 {[%clk 0:00:21]}  Rhg8 {[%clk 0:02:13]} 21. Rd2 {[%clk 0:00:14]}  Rb6 {[%clk 0:02:11]} 22. f4 {[%clk 0:00:09]}  Ng6 {[%clk 0:02:09]} 23. g3 {[%clk 0:00:10]}  Nf8 {[%clk 0:02:07]} 24. Be2 {[%clk 0:00:04]}  Rxg3 {[%clk 0:02:05]} 25. Bxh5 {[%clk 0:00:04]}  Rxh3 {[%clk 0:02:04]} 26. Bd1 {[%clk 0:00:04]}  Ng6 {[%clk 0:01:57]} 27. b3 {[%clk 0:00:04]}  Rb8 {[%clk 0:01:57]} 28. Kb2 {[%clk 0:00:03]}  a5 {[%clk 0:01:51]} 29. Bc2 {[%clk 0:00:03]}  a4 {[%clk 0:01:50]} 30. Ka2 {[%clk 0:00:02]}  axb3+ {[%clk 0:01:49]} 31. Bxb3 {[%clk 0:00:03]}  Nxf4 {[%clk 0:01:49]} 32. Nd5+ {[%clk 0:00:02]}  Nxd5 {[%clk 0:01:44]} 33. cxd5 {[%clk 0:00:02]}  Bb5 {[%clk 0:01:38]} 34. dxe6 {[%clk 0:00:01]}  fxe6 {[%clk 0:01:37]} 35. Rc1 {[%clk 0:00:02]}  Rc8 {[%clk 0:01:32]} 36. Rg2 {[%clk 0:00:02]}  d5 {[%clk 0:01:30]} 37. Rg7+ {[%clk 0:00:02]}  Kd6 {[%clk 0:01:30]} 38. a4 {[%clk 0:00:03]}  Ra8 {[%clk 0:01:28]} 39. Ka3 {[%clk 0:00:02]}  Rxe3 {[%clk 0:01:25]} 0-1


[Site "https://www.chess.com"]

[Event "Titled Tuesday Blitz August 3 2021"]
[White "Egorov, Evgeny"]
[Black "Ozen, Bahadir"]
[WhiteFideId "13700421"]
[BlackFideId "6337058"]
[WhiteElo "2422"]
[BlackElo "2503"]
[Result "1/2-1/2"]
[Round "02"]
[TimeControl "180+1"]
[Date "2021.08.03"]
[WhiteClock "0:00:06"]
[BlackClock "0:00:05"]

1. e4 {[%clk 0:03:00]}  c6 {[%clk 0:03:00]} 2. d4 {[%clk 0:03:00]}  d5 {[%clk 0:03:00]} 3. f3 {[%clk 0:03:00]}  e6 {[%clk 0:02:59]} 4. Nc3 {[%clk 0:03:00]}  Bb4 {[%clk 0:02:59]} 5. a3 {[%clk 0:02:59]}  Bxc3+ {[%clk 0:02:40]} 6. bxc3 {[%clk 0:02:58]}  dxe4 {[%clk 0:02:41]} 7. Qe2 {[%clk 0:02:49]}  c5 {[%clk 0:02:25]} 8. fxe4 {[%clk 0:02:44]}  cxd4 {[%clk 0:02:24]} 9. Qg4 {[%clk 0:02:44]}  Nf6 {[%clk 0:02:22]} 10. Qxg7 {[%clk 0:02:43]}  Rg8 {[%clk 0:02:23]} 11. Qh6 {[%clk 0:02:43]}  Rg6 {[%clk 0:02:06]} 12. Qh4 {[%clk 0:02:41]}  Rg4 {[%clk 0:02:03]} 13. Qh6 {[%clk 0:02:38]}  Rxe4+ {[%clk 0:02:02]} 14. Ne2 {[%clk 0:02:35]}  Nbd7 {[%clk 0:01:51]} 15. cxd4 {[%clk 0:02:31]}  b6 {[%clk 0:01:50]} 16. Be3 {[%clk 0:02:16]}  Qe7 {[%clk 0:00:50]} 17. h3 {[%clk 0:02:14]}  Nd5 {[%clk 0:00:47]} 18. Bd2 {[%clk 0:02:03]}  Ba6 {[%clk 0:00:48]} 19. Qxh7 {[%clk 0:01:58]}  N5f6 {[%clk 0:00:38]} 20. Qh8+ {[%clk 0:01:56]}  Qf8 {[%clk 0:00:35]} 21. Qxf8+ {[%clk 0:01:55]}  Kxf8 {[%clk 0:00:36]} 22. Kf2 {[%clk 0:01:40]}  Rc8 {[%clk 0:00:34]} 23. c3 {[%clk 0:01:28]}  Rh4 {[%clk 0:00:33]} 24. Ng3 {[%clk 0:01:21]}  Bxf1 {[%clk 0:00:34]} 25. Rhxf1 {[%clk 0:01:21]}  Nd5 {[%clk 0:00:35]} 26. Rac1 {[%clk 0:01:17]}  Rc4 {[%clk 0:00:35]} 27. Ke2 {[%clk 0:01:13]}  b5 {[%clk 0:00:34]} 28. Kd3 {[%clk 0:01:10]}  Rh8 {[%clk 0:00:33]} 29. Rf3 {[%clk 0:01:09]}  Ke7 {[%clk 0:00:31]} 30. Ne4 {[%clk 0:01:09]}  Rg8 {[%clk 0:00:29]} 31. g4 {[%clk 0:01:07]}  f6 {[%clk 0:00:27]} 32. Re1 {[%clk 0:01:05]}  Rd8 {[%clk 0:00:27]} 33. g5 {[%clk 0:00:58]}  f5 {[%clk 0:00:26]} 34. Ng3 {[%clk 0:00:54]}  Kd6 {[%clk 0:00:19]} 35. h4 {[%clk 0:00:46]}  Rg8 {[%clk 0:00:19]} 36. h5 {[%clk 0:00:45]}  a5 {[%clk 0:00:19]} 37. h6 {[%clk 0:00:42]}  Nf8 {[%clk 0:00:19]} 38. Rxf5 {[%clk 0:00:29]}  exf5 {[%clk 0:00:20]} 39. Nxf5+ {[%clk 0:00:28]}  Kd7 {[%clk 0:00:18]} 40. Re5 {[%clk 0:00:28]}  Nc7 {[%clk 0:00:18]} 41. Re7+ {[%clk 0:00:27]}  Kc6 {[%clk 0:00:19]} 42. h7 {[%clk 0:00:25]}  Rh8 {[%clk 0:00:19]} 43. Rf7 {[%clk 0:00:18]}  Nce6 {[%clk 0:00:10]} 44. d5+ {[%clk 0:00:16]}  Kxd5 {[%clk 0:00:10]} 45. Ne3+ {[%clk 0:00:17]}  Ke5 {[%clk 0:00:11]} 46. Nxc4+ {[%clk 0:00:16]}  bxc4+ {[%clk 0:00:12]} 47. Kxc4 {[%clk 0:00:16]}  Nxh7 {[%clk 0:00:12]} 48. g6 {[%clk 0:00:14]}  Nf6 {[%clk 0:00:12]} 49. g7 {[%clk 0:00:14]}  Rg8 {[%clk 0:00:12]} 50. Kb5 {[%clk 0:00:13]}  Nxg7 {[%clk 0:00:12]} 51. c4 {[%clk 0:00:12]}  Ne4 {[%clk 0:00:08]} 52. Bxa5 {[%clk 0:00:11]}  Ne6 {[%clk 0:00:07]} 53. Rh7 {[%clk 0:00:07]}  Nd6+ {[%clk 0:00:07]} 54. Kc6 {[%clk 0:00:06]}  Rc8+ {[%clk 0:00:07]} 55. Bc7 {[%clk 0:00:06]}  Nxc7 {[%clk 0:00:04]} 56. Rxc7 {[%clk 0:00:06]}  Rxc7+ {[%clk 0:00:03]} 57. Kxc7 {[%clk 0:00:05]}  Nxc4 {[%clk 0:00:04]} 58. a4 {[%clk 0:00:06]}  Kd5 {[%clk 0:00:05]} 59. a5 {[%clk 0:00:06]}  Nxa5 {[%clk 0:00:05]} 1/2-1/2


[Site "https://www.chess.com"]

[Event "Titled Tuesday Blitz August 3 2021"]
[White "FGHSMN"]
[Black "Karacsonyi, Gellert"]
[BlackFideId "764620"]
[WhiteElo "2503"]
[BlackElo "2192"]
[Result "1/2-1/2"]
[Round "02"]
[TimeControl "180+1"]
[Date "2021.08.03"]
[WhiteClock "0:01:10"]
[BlackClock "0:00:32"]

1. e4 {[%clk 0:03:00]}  c5 {[%clk 0:02:58]} 2. Nc3 {[%clk 0:03:00]}  Nc6 {[%clk 0:02:58]} 3. Nf3 {[%clk 0:02:59]}  g6 {[%clk 0:02:58]} 4. d4 {[%clk 0:02:59]}  cxd4 {[%clk 0:02:59]} 5. Nxd4 {[%clk 0:02:59]}  Bg7 {[%clk 0:02:59]} 6. Be3 {[%clk 0:02:59]}  Nf6 {[%clk 0:03:00]} 7. Be2 {[%clk 0:02:59]}  O-O {[%clk 0:03:00]} 8. O-O {[%clk 0:02:59]}  d5 {[%clk 0:03:00]} 9. exd5 {[%clk 0:02:56]}  Nxd5 {[%clk 0:03:01]} 10. Nxd5 {[%clk 0:02:56]}  Qxd5 {[%clk 0:03:02]} 11. Bf3 {[%clk 0:02:55]}  Qc4 {[%clk 0:03:02]} 12. b3 {[%clk 0:02:47]}  Qc3 {[%clk 0:02:47]} 13. Nxc6 {[%clk 0:02:11]}  bxc6 {[%clk 0:02:47]} 14. Rc1 {[%clk 0:02:11]}  Ba6 {[%clk 0:02:44]} 15. Be2 {[%clk 0:02:06]}  Rfd8 {[%clk 0:02:28]} 16. Qe1 {[%clk 0:02:05]}  Qxe1 {[%clk 0:01:54]} 17. Rfxe1 {[%clk 0:02:06]}  Bxe2 {[%clk 0:01:49]} 18. Rxe2 {[%clk 0:02:07]}  Bc3 {[%clk 0:01:46]} 19. g3 {[%clk 0:02:04]}  e6 {[%clk 0:01:42]} 20. Kg2 {[%clk 0:02:03]}  Rd5 {[%clk 0:01:39]} 21. f4 {[%clk 0:01:58]}  a6 {[%clk 0:01:39]} 22. Kf3 {[%clk 0:01:57]}  Rad8 {[%clk 0:01:39]} 23. Bb6 {[%clk 0:01:54]}  R8d7 {[%clk 0:01:38]} 24. Be3 {[%clk 0:01:48]}  h5 {[%clk 0:01:37]} 25. Rf1 {[%clk 0:01:45]}  Rd1 {[%clk 0:01:36]} 26. Rxd1 {[%clk 0:01:43]}  Rxd1 {[%clk 0:01:37]} 27. Bf2 {[%clk 0:01:41]}  Kf8 {[%clk 0:01:34]} 28. a4 {[%clk 0:01:39]}  Ke7 {[%clk 0:01:33]} 29. Re3 {[%clk 0:01:38]}  Bd4 {[%clk 0:01:28]} 30. Re4 {[%clk 0:01:29]}  Bxf2 {[%clk 0:01:15]} 31. Kxf2 {[%clk 0:01:30]}  Rh1 {[%clk 0:01:15]} 32. Kg2 {[%clk 0:01:26]}  Rc1 {[%clk 0:01:15]} 33. Rc4 {[%clk 0:01:25]}  Kd6 {[%clk 0:01:16]} 34. h3 {[%clk 0:01:24]}  Kd5 {[%clk 0:01:15]} 35. Kf3 {[%clk 0:01:22]}  f6 {[%clk 0:01:14]} 36. Rc3 {[%clk 0:01:20]}  e5 {[%clk 0:01:12]} 37. Rd3+ {[%clk 0:01:18]}  Ke6 {[%clk 0:01:12]} 38. fxe5 {[%clk 0:01:17]}  fxe5 {[%clk 0:01:10]} 39. Rc3 {[%clk 0:01:17]}  Kd5 {[%clk 0:01:09]} 40. Rd3+ {[%clk 0:01:16]}  Ke6 {[%clk 0:01:09]} 41. Rc3 {[%clk 0:01:15]}  Kd5 {[%clk 0:00:59]} 42. Rd3+ {[%clk 0:01:14]}  Kc5 {[%clk 0:00:40]} 43. Rc3+ {[%clk 0:01:10]}  Kd5 {[%clk 0:00:32]} 1/2-1/2


[Site "https://www.chess.com"]